[Event "Titled Tuesday Blitz April 12 Late 2022"]
[White "Janturin, Artur"]
[Black "Reprintsev, Alexander"]
[WhiteFideId "4130022"]
[BlackFideId "14100541"]
[WhiteElo "2357"]
[BlackElo "2108"]
[Result "1-0"]
[Round "11"]
[TimeControl "180+1"]
[Date "2022.04.13"]
[WhiteClock "0:00:22"]
[BlackClock "0:00:07"]

1. b3 {[%clk 0:03:00]}  e5 {[%clk 0:02:46]} 2. Bb2 {[%clk 0:03:01]}  f6 {[%clk 0:02:46]} 3. e3 {[%clk 0:03:01]}  d5 {[%clk 0:02:44]} 4. d4 {[%clk 0:03:00]}  Nc6 {[%clk 0:02:30]} 5. Nf3 {[%clk 0:02:37]}  e4 {[%clk 0:02:29]} 6. Nfd2 {[%clk 0:02:35]}  f5 {[%clk 0:02:29]} 7. c4 {[%clk 0:02:35]}  Nf6 {[%clk 0:02:27]} 8. Nc3 {[%clk 0:02:35]}  Be6 {[%clk 0:02:25]} 9. Be2 {[%clk 0:02:30]}  Nb4 {[%clk 0:02:18]} 10. O-O {[%clk 0:02:24]}  c6 {[%clk 0:02:15]} 11. a3 {[%clk 0:02:22]}  Na6 {[%clk 0:02:14]} 12. b4 {[%clk 0:02:03]}  Nc7 {[%clk 0:02:11]} 13. Rc1 {[%clk 0:02:01]}  Be7 {[%clk 0:02:07]} 14. Nb3 {[%clk 0:01:59]}  O-O {[%clk 0:02:05]} 15. Nc5 {[%clk 0:01:54]}  Bc8 {[%clk 0:02:05]} 16. cxd5 {[%clk 0:01:49]}  cxd5 {[%clk 0:02:04]} 17. Nb5 {[%clk 0:01:34]}  Nxb5 {[%clk 0:02:01]} 18. Bxb5 {[%clk 0:01:35]}  b6 {[%clk 0:02:01]} 19. Na6 {[%clk 0:01:07]}  Bd6 {[%clk 0:01:36]} 20. Qc2 {[%clk 0:01:07]}  Bd7 {[%clk 0:01:30]} 21. Bxd7 {[%clk 0:01:03]}  Qxd7 {[%clk 0:01:30]} 22. Qc6 {[%clk 0:01:03]}  Rfd8 {[%clk 0:01:28]} 23. Qxd7 {[%clk 0:01:03]}  Rxd7 {[%clk 0:01:28]} 24. Rc6 {[%clk 0:01:03]}  Kf7 {[%clk 0:01:24]} 25. Rfc1 {[%clk 0:01:03]}  Ne8 {[%clk 0:01:22]} 26. a4 {[%clk 0:01:01]}  Ke7 {[%clk 0:01:21]} 27. b5 {[%clk 0:00:59]}  g5 {[%clk 0:01:20]} 28. Bc3 {[%clk 0:00:59]}  Rad8 {[%clk 0:01:19]} 29. Bb4 {[%clk 0:00:58]}  Bxb4 {[%clk 0:01:19]} 30. Nxb4 {[%clk 0:00:58]}  Nf6 {[%clk 0:01:15]} 31. Kf1 {[%clk 0:00:50]}  f4 {[%clk 0:01:15]} 32. Ke2 {[%clk 0:00:50]}  h5 {[%clk 0:01:14]} 33. h3 {[%clk 0:00:48]}  Kf7 {[%clk 0:01:00]} 34. Rc7 {[%clk 0:00:47]}  Ke6 {[%clk 0:00:53]} 35. R1c6+ {[%clk 0:00:46]}  Ke7 {[%clk 0:00:50]} 36. Rc1 {[%clk 0:00:39]}  fxe3 {[%clk 0:00:48]} 37. Nc6+ {[%clk 0:00:37]}  Ke6 {[%clk 0:00:47]} 38. Nxd8+ {[%clk 0:00:37]}  Rxd8 {[%clk 0:00:45]} 39. fxe3 {[%clk 0:00:37]}  Ne8 {[%clk 0:00:35]} 40. R1c6+ {[%clk 0:00:36]}  Nd6 {[%clk 0:00:35]} 41. Rxa7 {[%clk 0:00:36]}  Kf5 {[%clk 0:00:35]} 42. a5 {[%clk 0:00:33]}  bxa5 {[%clk 0:00:33]} 43. b6 {[%clk 0:00:33]}  g4 {[%clk 0:00:26]} 44. h4 {[%clk 0:00:33]}  g3 {[%clk 0:00:26]} 45. Rxa5 {[%clk 0:00:32]}  Kg4 {[%clk 0:00:21]} 46. Rxd5 {[%clk 0:00:32]}  Ra8 {[%clk 0:00:16]} 47. Rcxd6 {[%clk 0:00:29]}  Ra2+ {[%clk 0:00:17]} 48. Kd1 {[%clk 0:00:29]}  Rxg2 {[%clk 0:00:15]} 49. Rb5 {[%clk 0:00:26]}  Rg1+ {[%clk 0:00:11]} 50. Kc2 {[%clk 0:00:25]}  g2 {[%clk 0:00:12]} 51. Rg6+ {[%clk 0:00:24]}  Kf3 {[%clk 0:00:12]} 52. b7 {[%clk 0:00:24]}  Re1 {[%clk 0:00:09]} 53. b8=Q {[%clk 0:00:24]}  Re2+ {[%clk 0:00:08]} 54. Kc3 {[%clk 0:00:23]}  Rxe3+ {[%clk 0:00:08]} 55. Kc4 {[%clk 0:00:24]}  Kf2 {[%clk 0:00:07]} 56. Qf4+ {[%clk 0:00:23]}  Rf3 {[%clk 0:00:07]} 57. Qxe4 {[%clk 0:00:22]} 1-0


[Site "https://www.chess.com"]

[Event "Titled Tuesday Blitz April 12 Late 2022"]
[White "Kalavannan, Koby"]
[Black "Prohorov, Olexandr"]
[WhiteFideId "425753"]
[BlackFideId "14105578"]
[WhiteElo "1927"]
[BlackElo "1993"]
[Result "1-0"]
[Round "11"]
[TimeControl "180+1"]
[Date "2022.04.13"]
[WhiteClock "0:00:05"]
[BlackClock "0:00:01"]

1. d4 {[%clk 0:03:00]}  g6 {[%clk 0:02:57]} 2. c4 {[%clk 0:03:01]}  Bg7 {[%clk 0:02:57]} 3. e4 {[%clk 0:03:01]}  d6 {[%clk 0:02:54]} 4. Nc3 {[%clk 0:03:01]}  Nc6 {[%clk 0:02:49]} 5. Be3 {[%clk 0:03:00]}  e5 {[%clk 0:02:47]} 6. d5 {[%clk 0:03:00]}  Nce7 {[%clk 0:02:45]} 7. f4 {[%clk 0:02:54]}  exf4 {[%clk 0:02:30]} 8. Bxf4 {[%clk 0:02:53]}  f5 {[%clk 0:02:31]} 9. Bd3 {[%clk 0:02:47]}  Nf6 {[%clk 0:02:27]} 10. Nf3 {[%clk 0:02:47]}  O-O {[%clk 0:02:26]} 11. e5 {[%clk 0:02:46]}  Nh5 {[%clk 0:02:24]} 12. exd6 {[%clk 0:02:19]}  Nxf4 {[%clk 0:02:20]} 13. dxe7 {[%clk 0:02:19]}  Qxe7+ {[%clk 0:02:21]} 14. Kf2 {[%clk 0:02:19]}  Qc5+ {[%clk 0:02:13]} 15. Kf1 {[%clk 0:02:02]}  Bd7 {[%clk 0:02:05]} 16. g3 {[%clk 0:01:49]}  Nxd3 {[%clk 0:02:00]} 17. Qxd3 {[%clk 0:01:49]}  Rae8 {[%clk 0:02:00]} 18. Kg2 {[%clk 0:01:40]}  Re3 {[%clk 0:01:35]} 19. Qd2 {[%clk 0:01:40]}  f4 {[%clk 0:01:29]} 20. Rae1 {[%clk 0:01:34]}  Qxc4 {[%clk 0:01:21]} 21. Rxe3 {[%clk 0:01:31]}  fxe3 {[%clk 0:01:21]} 22. Qxe3 {[%clk 0:01:32]}  Re8 {[%clk 0:01:17]} 23. Nd2 {[%clk 0:01:21]}  Qb4 {[%clk 0:01:07]} 24. Nce4 {[%clk 0:01:03]}  c6 {[%clk 0:01:05]} 25. Qb3 {[%clk 0:00:52]}  a5 {[%clk 0:00:56]} 26. Qxb4 {[%clk 0:00:48]}  axb4 {[%clk 0:00:57]} 27. Kf3 {[%clk 0:00:24]}  cxd5 {[%clk 0:00:54]} 28. Nc5 {[%clk 0:00:22]}  Bc6 {[%clk 0:00:54]} 29. Rb1 {[%clk 0:00:20]}  d4+ {[%clk 0:00:48]} 30. Kf2 {[%clk 0:00:20]}  d3 {[%clk 0:00:39]} 31. Nxd3 {[%clk 0:00:19]}  Rd8 {[%clk 0:00:33]} 32. Ke3 {[%clk 0:00:18]}  Bh6+ {[%clk 0:00:30]} 33. Nf4 {[%clk 0:00:18]}  g5 {[%clk 0:00:22]} 34. Nh5 {[%clk 0:00:18]}  g4+ {[%clk 0:00:22]} 35. Nf4 {[%clk 0:00:17]}  Re8+ {[%clk 0:00:19]} 36. Kd3 {[%clk 0:00:13]}  Ra8 {[%clk 0:00:18]} 37. a3 {[%clk 0:00:11]}  bxa3 {[%clk 0:00:14]} 38. Ra1 {[%clk 0:00:12]}  a2 {[%clk 0:00:12]} 39. Kc3 {[%clk 0:00:12]}  Bg7+ {[%clk 0:00:10]} 40. Kb3 {[%clk 0:00:13]}  Ba4+ {[%clk 0:00:04]} 41. Kc4 {[%clk 0:00:09]}  b5+ {[%clk 0:00:03]} 42. Kc5 {[%clk 0:00:07]}  Bxb2 {[%clk 0:00:03]} 43. Rxa2 {[%clk 0:00:07]}  Rc8+ {[%clk 0:00:02]} 44. Kd6 {[%clk 0:00:06]}  Bg7 {[%clk 0:00:01]} 45. Ne4 {[%clk 0:00:05]}  Rd8+ {[%clk 0:00:01]} 46. Ke7 {[%clk 0:00:05]} 1-0


[Site "https://www.chess.com"]

[Event "Titled Tuesday Blitz April 12 Late 2022"]
[White "Kanyamarala, Tarun"]
[Black "Petrovskyi, Vadym"]
[WhiteFideId "45004714"]
[BlackFideId "14165210"]
[WhiteElo "2177"]
[BlackElo "2400"]
[Result "0-1"]
[Round "11"]
[TimeControl "180+1"]
[Date "2022.04.12"]
[WhiteClock "0:00:02"]
[BlackClock "0:01:30"]

1. e3 {[%clk 0:02:59]}  Nf6 {[%clk 0:02:59]} 2. f4 {[%clk 0:02:58]}  g6 {[%clk 0:02:59]} 3. Nf3 {[%clk 0:02:58]}  Bg7 {[%clk 0:03:00]} 4. d3 {[%clk 0:02:57]}  O-O {[%clk 0:03:01]} 5. Be2 {[%clk 0:02:57]}  d6 {[%clk 0:03:01]} 6. O-O {[%clk 0:02:58]}  Nbd7 {[%clk 0:03:01]} 7. Nc3 {[%clk 0:02:53]}  e5 {[%clk 0:03:01]} 8. e4 {[%clk 0:02:53]}  c6 {[%clk 0:02:59]} 9. a4 {[%clk 0:02:50]}  h6 {[%clk 0:02:59]} 10. f5 {[%clk 0:02:45]}  Nc5 {[%clk 0:02:54]} 11. Nh4 {[%clk 0:02:43]}  Nfxe4 {[%clk 0:02:46]} 12. Nxe4 {[%clk 0:02:24]}  Qxh4 {[%clk 0:02:46]} 13. f6 {[%clk 0:02:13]}  Bh8 {[%clk 0:02:46]} 14. g3 {[%clk 0:02:03]}  Qh3 {[%clk 0:02:45]} 15. Nxd6 {[%clk 0:02:02]}  Be6 {[%clk 0:02:38]} 16. Be3 {[%clk 0:01:59]}  Nd7 {[%clk 0:02:38]} 17. Ne4 {[%clk 0:01:47]}  Rfd8 {[%clk 0:02:34]} 18. Qd2 {[%clk 0:01:43]}  Kh7 {[%clk 0:02:31]} 19. Rf3 {[%clk 0:01:13]}  Bg4 {[%clk 0:02:16]} 20. Nf2 {[%clk 0:00:55]}  Qh5 {[%clk 0:02:11]} 21. Nxg4 {[%clk 0:00:45]}  Qxg4 {[%clk 0:02:12]} 22. Bxh6 {[%clk 0:00:44]}  Qe6 {[%clk 0:02:00]} 23. Raf1 {[%clk 0:00:32]}  e4 {[%clk 0:01:53]} 24. Rf4 {[%clk 0:00:30]}  e3 {[%clk 0:01:53]} 25. Qb4 {[%clk 0:00:27]}  Bxf6 {[%clk 0:01:46]} 26. Rxf6 {[%clk 0:00:19]}  Nxf6 {[%clk 0:01:47]} 27. Qh4 {[%clk 0:00:18]}  Nh5 {[%clk 0:01:39]} 28. Bxh5 {[%clk 0:00:17]}  gxh5 {[%clk 0:01:40]} 29. Qxh5 {[%clk 0:00:16]}  e2 {[%clk 0:01:30]} 30. Rxf7+ {[%clk 0:00:15]}  Kg8 {[%clk 0:01:31]} 31. Rg7+ {[%clk 0:00:12]}  Kh8 {[%clk 0:01:31]} 32. Rh7+ {[%clk 0:00:02]}  Kxh7 {[%clk 0:01:30]} 0-1


[Site "https://www.chess.com"]

[Event "Titled Tuesday Blitz April 12 Late 2022"]
[White "Karttunen, Mika"]
[Black "Sellitti, Federico"]
[WhiteFideId "502081"]
[BlackFideId "821829"]
[WhiteElo "2343"]
[BlackElo "2541"]
[Result "1-0"]
[Round "11"]
[TimeControl "180+1"]
[Date "2022.04.12"]
[WhiteClock "0:00:03"]
[BlackClock "0:00:01"]

1. c4 {[%clk 0:03:00]}  c5 {[%clk 0:02:59]} 2. Nf3 {[%clk 0:03:00]}  Nc6 {[%clk 0:02:59]} 3. Nc3 {[%clk 0:02:56]}  Nf6 {[%clk 0:02:59]} 4. a3 {[%clk 0:02:51]}  a6 {[%clk 0:02:59]} 5. b4 {[%clk 0:02:39]}  cxb4 {[%clk 0:02:56]} 6. axb4 {[%clk 0:02:39]}  Nxb4 {[%clk 0:02:57]} 7. e4 {[%clk 0:02:39]}  d6 {[%clk 0:02:52]} 8. d4 {[%clk 0:02:38]}  Nc6 {[%clk 0:02:47]} 9. d5 {[%clk 0:02:33]}  Nb8 {[%clk 0:02:39]} 10. c5 {[%clk 0:02:12]}  g6 {[%clk 0:02:30]} 11. e5 {[%clk 0:02:01]}  dxe5 {[%clk 0:02:24]} 12. Nxe5 {[%clk 0:02:01]}  Bg7 {[%clk 0:02:23]} 13. Bb5+ {[%clk 0:01:34]}  Nfd7 {[%clk 0:01:37]} 14. Bf4 {[%clk 0:00:09]}  O-O {[%clk 0:01:33]} 15. Qd4 {[%clk 0:00:05]}  Nxe5 {[%clk 0:01:20]} 16. Bxe5 {[%clk 0:00:04]}  Nc6 {[%clk 0:01:18]} 17. Bxc6 {[%clk 0:00:03]}  Bxe5 {[%clk 0:01:18]} 18. Qxe5 {[%clk 0:00:04]}  bxc6 {[%clk 0:01:18]} 19. O-O {[%clk 0:00:03]}  f6 {[%clk 0:01:03]} 20. Qe4 {[%clk 0:00:03]}  Bf5 {[%clk 0:00:57]} 21. Qf3 {[%clk 0:00:03]}  Qc7 {[%clk 0:00:20]} 22. dxc6 {[%clk 0:00:03]}  Be6 {[%clk 0:00:16]} 23. Rfe1 {[%clk 0:00:03]}  Bf7 {[%clk 0:00:17]} 24. Qe4 {[%clk 0:00:02]}  e5 {[%clk 0:00:16]} 25. Reb1 {[%clk 0:00:02]}  Rab8 {[%clk 0:00:16]} 26. Rxa6 {[%clk 0:00:01]}  Rxb1+ {[%clk 0:00:13]} 27. Qxb1 {[%clk 0:00:02]}  Rd8 {[%clk 0:00:11]} 28. Rb6 {[%clk 0:00:02]}  Rc8 {[%clk 0:00:08]} 29. Ne4 {[%clk 0:00:02]}  Bd5 {[%clk 0:00:04]} 30. Nxf6+ {[%clk 0:00:02]}  Kg7 {[%clk 0:00:02]} 31. Nxd5 {[%clk 0:00:03]}  Qd8 {[%clk 0:00:03]} 32. Qe4 {[%clk 0:00:03]}  Qe8 {[%clk 0:00:01]} 33. g3 {[%clk 0:00:03]}  Qe6 {[%clk 0:00:01]} 34. Rb7+ {[%clk 0:00:03]} 1-0


[Site "https://www.chess.com"]

[Event "Titled Tuesday Blitz April 12 Late 2022"]
[White "Kazakouski, Valery"]
[Black "Aldokhin, Ivan"]
[WhiteFideId "13507443"]
[BlackFideId "24115720"]
[WhiteElo "2524"]
[BlackElo "2231"]
[Result "1-0"]
[Round "11"]
[TimeControl "180+1"]
[Date "2022.04.12"]
[WhiteClock "0:00:17"]
[BlackClock "0:00:05"]

1. d4 {[%clk 0:03:00]}  Nf6 {[%clk 0:02:59]} 2. c4 {[%clk 0:03:01]}  g6 {[%clk 0:03:00]} 3. Nc3 {[%clk 0:03:01]}  Bg7 {[%clk 0:03:00]} 4. e4 {[%clk 0:03:01]}  d6 {[%clk 0:03:01]} 5. h3 {[%clk 0:03:02]}  O-O {[%clk 0:03:01]} 6. Be3 {[%clk 0:03:02]}  Nc6 {[%clk 0:03:02]} 7. d5 {[%clk 0:02:55]}  Nb4 {[%clk 0:03:02]} 8. Nf3 {[%clk 0:02:52]}  Re8 {[%clk 0:03:02]} 9. a3 {[%clk 0:02:50]}  Na6 {[%clk 0:03:02]} 10. Bd3 {[%clk 0:02:50]}  e6 {[%clk 0:03:02]} 11. O-O {[%clk 0:02:49]}  exd5 {[%clk 0:03:01]} 12. cxd5 {[%clk 0:02:34]}  Nc5 {[%clk 0:02:58]} 13. Qc2 {[%clk 0:02:15]}  Nxd3 {[%clk 0:02:47]} 14. Qxd3 {[%clk 0:02:16]}  Qe7 {[%clk 0:02:25]} 15. Rfe1 {[%clk 0:01:52]}  Bd7 {[%clk 0:02:17]} 16. Rad1 {[%clk 0:01:26]}  Nh5 {[%clk 0:01:57]} 17. Bd4 {[%clk 0:01:02]}  Nf4 {[%clk 0:01:44]} 18. Qd2 {[%clk 0:01:02]}  Bxd4 {[%clk 0:01:22]} 19. Qxd4 {[%clk 0:01:03]}  f6 {[%clk 0:01:04]} 20. Qe3 {[%clk 0:01:03]}  g5 {[%clk 0:01:03]} 21. Nd4 {[%clk 0:01:03]}  Qg7 {[%clk 0:00:59]} 22. Rc1 {[%clk 0:00:46]}  a6 {[%clk 0:00:58]} 23. Qf3 {[%clk 0:00:38]}  Re5 {[%clk 0:00:53]} 24. Nce2 {[%clk 0:00:38]}  Nxe2+ {[%clk 0:00:47]} 25. Qxe2 {[%clk 0:00:35]}  Rc8 {[%clk 0:00:43]} 26. Qd3 {[%clk 0:00:30]}  Qe7 {[%clk 0:00:42]} 27. Re3 {[%clk 0:00:30]}  Qg7 {[%clk 0:00:41]} 28. b4 {[%clk 0:00:25]}  Qg6 {[%clk 0:00:40]} 29. Rce1 {[%clk 0:00:24]}  Rce8 {[%clk 0:00:40]} 30. Qc2 {[%clk 0:00:22]}  Rc8 {[%clk 0:00:31]} 31. Rg3 {[%clk 0:00:22]}  h5 {[%clk 0:00:30]} 32. f4 {[%clk 0:00:22]}  Re7 {[%clk 0:00:28]} 33. f5 {[%clk 0:00:21]}  Qe8 {[%clk 0:00:16]} 34. Ne6 {[%clk 0:00:21]}  Bxe6 {[%clk 0:00:14]} 35. fxe6 {[%clk 0:00:21]}  Qb5 {[%clk 0:00:15]} 36. Rf3 {[%clk 0:00:19]}  Rf8 {[%clk 0:00:14]} 37. Ref1 {[%clk 0:00:19]}  Kg7 {[%clk 0:00:12]} 38. Qc3 {[%clk 0:00:18]}  Qe2 {[%clk 0:00:05]} 39. Rxf6 {[%clk 0:00:17]} 1-0


[Site "https://www.chess.com"]

[Event "Titled Tuesday Blitz April 12 Late 2022"]
[White "Minko, Dmitry"]
[Black "Migot, Tangi"]
[WhiteFideId "24188468"]
[BlackFideId "662445"]
[WhiteElo "1928"]
[BlackElo "2522"]
[Result "0-1"]
[Round "11"]
[TimeControl "180+1"]
[Date "2022.04.13"]
[WhiteClock "0:01:26"]
[BlackClock "0:01:43"]

1. e4 {[%clk 0:02:59]}  c5 {[%clk 0:02:59]} 2. Nf3 {[%clk 0:02:59]}  a6 {[%clk 0:02:59]} 3. d4 {[%clk 0:02:58]}  cxd4 {[%clk 0:03:00]} 4. Nxd4 {[%clk 0:02:59]}  Nf6 {[%clk 0:02:59]} 5. Nc3 {[%clk 0:02:58]}  e5 {[%clk 0:02:59]} 6. Nb3 {[%clk 0:02:56]}  Bb4 {[%clk 0:02:59]} 7. f3 {[%clk 0:02:54]}  d5 {[%clk 0:02:55]} 8. exd5 {[%clk 0:02:54]}  Nxd5 {[%clk 0:02:55]} 9. Bd2 {[%clk 0:02:55]}  Nxc3 {[%clk 0:02:53]} 10. Bxc3 {[%clk 0:02:55]}  Bxc3+ {[%clk 0:02:52]} 11. bxc3 {[%clk 0:02:54]}  Qc7 {[%clk 0:02:51]} 12. Qd2 {[%clk 0:02:50]}  O-O {[%clk 0:02:49]} 13. Bd3 {[%clk 0:02:51]}  Be6 {[%clk 0:02:46]} 14. O-O {[%clk 0:02:51]}  Nd7 {[%clk 0:02:46]} 15. f4 {[%clk 0:02:51]}  exf4 {[%clk 0:02:45]} 16. Rxf4 {[%clk 0:02:49]}  Ne5 {[%clk 0:02:45]} 17. Be4 {[%clk 0:02:36]}  Rad8 {[%clk 0:02:40]} 18. Nd4 {[%clk 0:02:35]}  Bc8 {[%clk 0:02:30]} 19. Qe2 {[%clk 0:02:32]}  g6 {[%clk 0:02:27]} 20. Raf1 {[%clk 0:02:26]}  f5 {[%clk 0:02:06]} 21. Bd3 {[%clk 0:02:10]}  Nxd3 {[%clk 0:01:59]} 22. Qxd3 {[%clk 0:02:09]}  Rfe8 {[%clk 0:01:57]} 23. g4 {[%clk 0:02:05]}  fxg4 {[%clk 0:01:44]} 24. Rf7 {[%clk 0:01:51]}  Re7 {[%clk 0:01:44]} 25. Rxe7 {[%clk 0:01:26]}  Qxe7 {[%clk 0:01:45]} 26. Qc4+ {[%clk 0:01:26]}  Kg7 {[%clk 0:01:43]} 0-1


[Site "https://www.chess.com"]

[Event "Titled Tuesday Blitz April 12 Late 2022"]
[White "Miszler, Levente"]
[Black "Le Goff, Ronan"]
[WhiteFideId "763276"]
[BlackFideId "612073"]
[WhiteElo "1966"]
[BlackElo "2276"]
[Result "1-0"]
[Round "11"]
[TimeControl "180+1"]
[Date "2022.04.13"]
[WhiteClock "0:00:12"]
[BlackClock "0:00:16"]

1. Nf3 {[%clk 0:03:00]}  Nf6 {[%clk 0:03:00]} 2. c4 {[%clk 0:03:00]}  e6 {[%clk 0:03:00]} 3. g3 {[%clk 0:03:01]}  d5 {[%clk 0:02:58]} 4. Bg2 {[%clk 0:03:01]}  Be7 {[%clk 0:02:58]} 5. O-O {[%clk 0:03:02]}  O-O {[%clk 0:02:59]} 6. d4 {[%clk 0:03:02]}  dxc4 {[%clk 0:02:58]} 7. Qc2 {[%clk 0:03:01]}  a6 {[%clk 0:02:59]} 8. a4 {[%clk 0:03:01]}  Bd7 {[%clk 0:02:57]} 9. Ne5 {[%clk 0:03:01]}  Bc6 {[%clk 0:02:55]} 10. Nxc6 {[%clk 0:03:01]}  Nxc6 {[%clk 0:02:56]} 11. e3 {[%clk 0:03:01]}  Na5 {[%clk 0:02:55]} 12. Nd2 {[%clk 0:03:01]}  c5 {[%clk 0:02:52]} 13. dxc5 {[%clk 0:03:00]}  Rc8 {[%clk 0:02:52]} 14. b4 {[%clk 0:02:54]}  cxb3 {[%clk 0:02:42]} 15. Nxb3 {[%clk 0:02:53]}  Nxb3 {[%clk 0:02:33]} 16. Qxb3 {[%clk 0:02:54]}  Bxc5 {[%clk 0:02:28]} 17. Qxb7 {[%clk 0:02:48]}  a5 {[%clk 0:02:27]} 18. Ba3 {[%clk 0:02:34]}  Bxa3 {[%clk 0:02:22]} 19. Rxa3 {[%clk 0:02:35]}  Qd6 {[%clk 0:02:18]} 20. Ra2 {[%clk 0:02:18]}  Rb8 {[%clk 0:02:16]} 21. Qa7 {[%clk 0:02:17]}  Qb4 {[%clk 0:02:09]} 22. Rd1 {[%clk 0:02:09]}  Rfd8 {[%clk 0:02:02]} 23. Rc1 {[%clk 0:01:47]}  h5 {[%clk 0:01:58]} 24. h3 {[%clk 0:01:37]}  h4 {[%clk 0:01:56]} 25. g4 {[%clk 0:01:30]}  Rbc8 {[%clk 0:01:40]} 26. Rxc8 {[%clk 0:01:17]}  Rxc8 {[%clk 0:01:33]} 27. Ra1 {[%clk 0:01:07]}  g6 {[%clk 0:01:32]} 28. Qb7 {[%clk 0:01:03]}  Rb8 {[%clk 0:01:27]} 29. Qxb4 {[%clk 0:01:01]}  Rxb4 {[%clk 0:01:28]} 30. Bc6 {[%clk 0:01:01]}  Rc4 {[%clk 0:01:23]} 31. Bb5 {[%clk 0:01:00]}  Rc2 {[%clk 0:01:23]} 32. Rd1 {[%clk 0:00:57]}  Nd5 {[%clk 0:01:22]} 33. Rd4 {[%clk 0:00:50]}  Kg7 {[%clk 0:01:17]} 34. g5 {[%clk 0:00:49]}  Nc3 {[%clk 0:01:06]} 35. Rxh4 {[%clk 0:00:47]}  Nxb5 {[%clk 0:00:58]} 36. axb5 {[%clk 0:00:47]}  Rc5 {[%clk 0:00:57]} 37. b6 {[%clk 0:00:43]}  Rxg5+ {[%clk 0:00:57]} 38. Kf1 {[%clk 0:00:44]}  Rb5 {[%clk 0:00:56]} 39. Ra4 {[%clk 0:00:43]}  g5 {[%clk 0:00:51]} 40. b7 {[%clk 0:00:42]}  Rxb7 {[%clk 0:00:50]} 41. Rxa5 {[%clk 0:00:43]}  Kg6 {[%clk 0:00:51]} 42. Kg2 {[%clk 0:00:42]}  Rb4 {[%clk 0:00:50]} 43. Ra7 {[%clk 0:00:40]}  f5 {[%clk 0:00:49]} 44. Kg3 {[%clk 0:00:39]}  Rb3 {[%clk 0:00:48]} 45. Kf3 {[%clk 0:00:33]}  Kf6 {[%clk 0:00:48]} 46. Ra6 {[%clk 0:00:32]}  Rb5 {[%clk 0:00:47]} 47. Rc6 {[%clk 0:00:31]}  Ke5 {[%clk 0:00:47]} 48. Ra6 {[%clk 0:00:30]}  Rc5 {[%clk 0:00:47]} 49. Rb6 {[%clk 0:00:30]}  Ra5 {[%clk 0:00:47]} 50. Rc6 {[%clk 0:00:30]}  Ra3 {[%clk 0:00:46]} 51. Rc5+ {[%clk 0:00:28]}  Kd6 {[%clk 0:00:46]} 52. Rb5 {[%clk 0:00:27]}  e5 {[%clk 0:00:46]} 53. Rb6+ {[%clk 0:00:26]}  Kc5 {[%clk 0:00:45]} 54. Rg6 {[%clk 0:00:26]}  e4+ {[%clk 0:00:32]} 55. Kg2 {[%clk 0:00:25]}  Kd5 {[%clk 0:00:30]} 56. Rxg5 {[%clk 0:00:23]}  Ke5 {[%clk 0:00:30]} 57. Rg6 {[%clk 0:00:20]}  Ra5 {[%clk 0:00:28]} 58. Kg3 {[%clk 0:00:19]}  Ra1 {[%clk 0:00:28]} 59. Kg2 {[%clk 0:00:18]}  Ra5 {[%clk 0:00:28]} 60. h4 {[%clk 0:00:19]}  Ra7 {[%clk 0:00:25]} 61. h5 {[%clk 0:00:19]}  Rh7 {[%clk 0:00:25]} 62. h6 {[%clk 0:00:17]}  Rh8 {[%clk 0:00:25]} 63. Kg3 {[%clk 0:00:16]}  Rh7 {[%clk 0:00:24]} 64. Kh4 {[%clk 0:00:17]}  f4 {[%clk 0:00:21]} 65. exf4+ {[%clk 0:00:14]}  Kxf4 {[%clk 0:00:22]} 66. Kh5 {[%clk 0:00:14]}  Kf5 {[%clk 0:00:20]} 67. Rg7 {[%clk 0:00:14]}  Rh8 {[%clk 0:00:20]} 68. h7 {[%clk 0:00:13]}  Kf4 {[%clk 0:00:16]} 69. Kh6 {[%clk 0:00:12]}  Kf3 {[%clk 0:00:15]} 70. Rf7+ {[%clk 0:00:13]}  Ke2 {[%clk 0:00:15]} 71. Kg7 {[%clk 0:00:13]}  Rxh7+ {[%clk 0:00:14]} 72. Kxh7 {[%clk 0:00:13]}  Kf1 {[%clk 0:00:14]} 73. Kg6 {[%clk 0:00:13]}  Ke2 {[%clk 0:00:14]} 74. Kf5 {[%clk 0:00:12]}  e3 {[%clk 0:00:15]} 75. fxe3 {[%clk 0:00:11]}  Kxe3 {[%clk 0:00:16]} 76. Re7+ {[%clk 0:00:12]} 1-0


[Site "https://www.chess.com"]

[Event "Titled Tuesday Blitz April 12 Late 2022"]
[White "Molenda, Marcin"]
[Black "Koelle, Tobias"]
[WhiteFideId "1173065"]
[BlackFideId "16207378"]
[WhiteElo "2067"]
[BlackElo "2541"]
[Result "0-1"]
[Round "11"]
[TimeControl "180+1"]
[Date "2022.04.12"]
[WhiteClock "0:01:03"]
[BlackClock "0:01:37"]

1. d4 {[%clk 0:03:00]}  Nf6 {[%clk 0:02:58]} 2. c4 {[%clk 0:03:00]}  c5 {[%clk 0:02:57]} 3. Nf3 {[%clk 0:02:59]}  cxd4 {[%clk 0:02:57]} 4. Nxd4 {[%clk 0:03:00]}  e5 {[%clk 0:02:57]} 5. Nf3 {[%clk 0:02:51]}  Nc6 {[%clk 0:02:56]} 6. Nc3 {[%clk 0:02:51]}  Bb4 {[%clk 0:02:56]} 7. Bd2 {[%clk 0:02:48]}  O-O {[%clk 0:02:56]} 8. a3 {[%clk 0:02:46]}  Bxc3 {[%clk 0:02:56]} 9. Bxc3 {[%clk 0:02:46]}  Ne4 {[%clk 0:02:57]} 10. Qc2 {[%clk 0:02:39]}  Nxc3 {[%clk 0:02:53]} 11. Qxc3 {[%clk 0:02:40]}  d5 {[%clk 0:02:30]} 12. cxd5 {[%clk 0:02:31]}  Qxd5 {[%clk 0:02:31]} 13. e3 {[%clk 0:02:32]}  Bg4 {[%clk 0:02:30]} 14. Bc4 {[%clk 0:02:31]}  Qe4 {[%clk 0:02:26]} 15. Bd3 {[%clk 0:02:29]}  Qd5 {[%clk 0:02:26]} 16. Bc4 {[%clk 0:02:27]}  Qd6 {[%clk 0:02:26]} 17. O-O {[%clk 0:02:19]}  Bxf3 {[%clk 0:02:25]} 18. gxf3 {[%clk 0:02:20]}  Rac8 {[%clk 0:02:22]} 19. Qd3 {[%clk 0:02:04]}  Qf6 {[%clk 0:02:19]} 20. Rad1 {[%clk 0:01:57]}  Qxf3 {[%clk 0:02:08]} 21. Bd5 {[%clk 0:01:51]}  Qg4+ {[%clk 0:02:06]} 22. Kh1 {[%clk 0:01:51]}  Rcd8 {[%clk 0:02:04]} 23. Rg1 {[%clk 0:01:42]}  Qh5 {[%clk 0:01:59]} 24. Qe4 {[%clk 0:01:40]}  Kh8 {[%clk 0:01:55]} 25. Bxc6 {[%clk 0:01:39]}  Rxd1 {[%clk 0:01:53]} 26. Bxb7 {[%clk 0:01:35]}  Rfd8 {[%clk 0:01:51]} 27. b4 {[%clk 0:01:11]}  Qg5 {[%clk 0:01:45]} 28. Qg2 {[%clk 0:01:05]}  Rxg1+ {[%clk 0:01:43]} 29. Qxg1 {[%clk 0:01:04]}  Qxg1+ {[%clk 0:01:44]} 30. Kxg1 {[%clk 0:01:05]}  f5 {[%clk 0:01:37]} 31. a4 {[%clk 0:01:03]}  Rb8 {[%clk 0:01:37]} 0-1


[Site "https://www.chess.com"]